fUST/lending_fUST_20250521
["ID","MTS","AMOUNT","RATE_DAILY","PERIOD"]
[361762501,1747768239237,-430.0,0.00016712,2]
[361762502,1747768239247,-446.59,0.00016712,2]
[361762503,1747768239257,-470.0,0.00016712,2]
[361762504,1747768239267,-470.0,0.00016712,2]
[361762505,1747768239276,-470.0,0.00016712,2]
[361762506,1747768239285,-470.0,0.00016712,2]
[361762507,1747768239295,-470.0,0.00016712,2]
[361762508,1747768239305,-470.0,0.00016712,2]
[361762509,1747768239315,-220.0,0.00016712,2]
[361762510,1747768239324,-470.0,0.00016712,2]
[361762511,1747768239334,-470.0,0.00016712,2]
[361762512,1747768239344,-470.0,0.00016712,2]
[361762513,1747768239354,-570.0,0.00016712,2]
[361762514,1747768239364,-341.33601702,0.00016712,2]
[361762515,1747768239374,-490.0,0.00016712,2]
[361762516,1747768239384,-430.0,0.00016712,2]
[361762517,1747768239394,-470.0,0.00016712,2]
[361762518,1747768239403,-470.0,0.00016712,2]
[361762519,1747768239413,-470.0,0.00016712,2]
[361762520,1747768239423,-373.88889079,0.00016712,2]
[361762521,1747768239432,-430.0,0.00016712,2]
[361762522,1747768239442,-470.0,0.00016712,2]
[361762523,1747768239452,-430.0,0.00016712,2]
[361762524,1747768239462,-430.0,0.00016712,2]
[361762525,1747768239472,-430.0,0.00016712,2]
[361762526,1747768239481,-430.0,0.00016712,2]
[361762527,1747768239491,-430.0,0.00016712,2]
[361762528,1747768239501,-430.0,0.00016712,2]
[361762529,1747768239511,-430.0,0.00016712,2]
[361762530,1747768239521,-430.0,0.00016712,2]
[361762531,1747768239531,-430.0,0.00016712,2]
[361762532,1747768239540,-470.0,0.00016712,2]
[361762533,1747768239550,-470.0,0.00016712,2]
[361762534,1747768239560,-430.0,0.00016712,2]
[361762535,1747768239569,-427.27,0.00016712,2]
[361762536,1747768239579,-430.0,0.00016712,2]
[361762537,1747768239588,-430.0,0.00016712,2]
[361762538,1747768239598,-430.0,0.00016712,2]
[361762539,1747768239608,-430.0,0.00016712,2]
[361762540,1747768239617,-430.0,0.00016712,2]
[361762541,1747768239627,-430.0,0.00016712,2]
[361762542,1747768239636,-430.0,0.00016712,2]
[361762544,1747768239646,-470.0,0.00016712,2]
[361762546,1747768239656,-220.0,0.00016712,2]
[361762547,1747768239666,-430.0,0.00016712,2]
[361762548,1747768239676,-470.0,0.00016712,2]
[361762549,1747768239687,-470.0,0.00016712,2]
[361762551,1747768239696,-470.0,0.00016712,2]
[361762552,1747768239707,-520.0,0.00016712,2]
[361762553,1747768239717,-430.0,0.00016712,2]
[361762554,1747768239727,-430.0,0.00016712,2]
[361762555,1747768239736,-470.0,0.00016712,2]
[361762556,1747768239745,-430.0,0.00016712,2]
[361762557,1747768239755,-470.0,0.00016712,2]
[361762558,1747768239765,-470.0,0.00016712,2]
[361762559,1747768239776,-470.0,0.00016712,2]
[361762560,1747768239788,-470.0,0.00016712,2]
[361762561,1747768239798,-570.0,0.00016712,2]
[361762562,1747768239808,-470.0,0.00016712,2]
[361762563,1747768239818,-430.0,0.00016712,2]
[361762564,1747768239828,-374.8,0.00016712,2]
[361762565,1747768239838,-470.0,0.00016712,2]
[361762566,1747768239847,-430.0,0.00016712,2]
[361762567,1747768239857,-470.0,0.00016712,2]
[361762568,1747768239868,-533.5574661,0.00016712,2]
[361762569,1747768239878,-470.0,0.00016712,2]
[361762570,1747768239888,-324.92196697,0.00016712,2]
[361762571,1747768239897,-136.17711206,0.00016712,2]
[361762575,1747768239929,-333.82288794,0.00016712,2]
[361762577,1747768239939,-470.0,0.00016712,2]
[361762578,1747768239950,-430.0,0.00016712,2]
[361762580,1747768239961,-470.0,0.00016712,2]
[361762581,1747768239971,-470.0,0.00016712,2]
[361762583,1747768239980,-470.0,0.00016712,2]
[361762584,1747768239990,-430.0,0.00016712,2]
[361762585,1747768240000,-430.0,0.00016712,2]
[361762586,1747768240010,-168.7771366,0.00016712,2]
[361762588,1747768240165,-450.0,0.00016438,2]
[361762589,1747768240175,-301.2228634,0.00016712,2]
[361762590,1747768240185,-470.0,0.00016712,2]
[361762591,1747768240194,-430.0,0.00016712,2]
[361762592,1747768240205,-470.0,0.00016712,2]
[361762593,1747768240215,-430.0,0.00016712,2]
[361762594,1747768240225,-430.0,0.00016712,2]
[361762595,1747768240236,-470.0,0.00016712,2]
[361762596,1747768240245,-430.0,0.00016712,2]
[361762597,1747768240255,-430.0,0.00016712,2]
[361762598,1747768240265,-430.0,0.00016712,2]
[361762599,1747768240274,-258.7771366,0.00016712,2]
[361762600,1747768240287,-171.2228634,0.00016712,2]
[361762601,1747768240297,-430.0,0.00016712,2]
[361762602,1747768240306,-430.0,0.00016712,2]
[361762603,1747768240317,-430.0,0.00016712,2]
[361762604,1747768240327,-430.0,0.00016712,2]
[361762605,1747768240338,-430.0,0.00016712,2]
[361762606,1747768240348,-430.0,0.00016712,2]
[361762607,1747768240357,-430.0,0.00016712,2]
[361762608,1747768240367,-430.0,0.00016712,2]
[361762609,1747768240377,-430.0,0.00016712,2]
[361762610,1747768240386,-489.36998825,0.00016712,2]
[361762611,1747768240396,-430.0,0.00016712,2]
[361762612,1747768240406,-85.40903794,0.00016712,2]
[361762613,1747768240422,-384.59096206,0.00016712,2]
[361762614,1747768240432,-430.0,0.00016712,2]
[361762615,1747768240441,-430.0,0.00016712,2]
[361762616,1747768240452,-430.0,0.00016712,2]
[361762617,1747768240462,-470.0,0.00016712,2]
[361762618,1747768240472,-430.0,0.00016712,2]
[361762619,1747768240481,-470.0,0.00016712,2]
[361762620,1747768240491,-430.0,0.00016712,2]
[361762621,1747768240500,-470.0,0.00016712,2]
[361762622,1747768240510,-470.0,0.00016712,2]
[361762623,1747768240519,-470.0,0.00016712,2]
[361762624,1747768240530,-470.0,0.00016712,2]
[361762625,1747768240541,-470.0,0.00016712,2]
[361762626,1747768240552,-470.0,0.00016712,2]
[361762627,1747768240562,-470.0,0.00016712,2]
[361762628,1747768240572,-470.0,0.00016712,2]
[361762629,1747768240581,-470.0,0.00016712,2]
[361762630,1747768240590,-470.0,0.00016712,2]
[361762631,1747768240601,-523.64,0.00016712,2]
[361762632,1747768240611,-430.0,0.00016712,2]
[361762633,1747768240622,-421.95335443,0.00016712,2]
[361762634,1747768240635,-48.04664557,0.00016712,2]
[361762635,1747768240645,-362.43644265,0.00016712,2]
[361762636,1747768240657,-107.56355735,0.00016712,2]
[361762637,1747768240667,-430.0,0.00016712,2]
[361762638,1747768240676,-426.66645119,0.00016712,2]
[361762639,1747768240685,-572.4125288,0.00016712,2]
[361762640,1747768240695,-572.54,0.00016712,2]
[361762641,1747768240704,-470.0,0.00016712,2]
[361762642,1747768240714,-350.81746266,0.00016712,2]
[361762643,1747768240799,-119.18253734,0.00016712,2]
[361762644,1747768240809,-470.0,0.00016712,2]
[361762645,1747768240819,-437.33831109,0.00016712,2]
[361762646,1747768240833,-32.66168891,0.00016712,2]
[361762647,1747768240842,-383.99321445,0.00016712,2]
[361762648,1747768240854,-86.00678555,0.00016712,2]
[361762649,1747768240863,-270.0,0.00016712,2]
[361762650,1747768240874,-27.10521445,0.00016712,2]
[361762651,1747768240885,-297.29478555,0.00016712,2]
[361762652,1747768240895,-164.07088078,0.00016712,2]
[361762653,1747768240997,-4.72581908,0.00016712,2]
[361762654,1747768241010,-301.20330014,0.00016712,2]
[361762655,1747768241021,-95.73786016,0.00016712,2]
[361762656,1747768241035,-374.26213984,0.00016712,2]
[361762657,1747768241045,-300.0,0.00016712,2]
[361762658,1747768241057,-470.0,0.00016712,2]
[361762659,1747768241067,-220.0,0.00016712,2]
[361762660,1747768241078,-430.0,0.00016712,2]
[361762661,1747768241087,-430.0,0.00016712,2]
[361762662,1747768241096,-430.0,0.00016712,2]
[361762663,1747768241106,-470.0,0.00016712,2]
[361762664,1747768241115,-470.0,0.00016712,2]
[361762665,1747768241125,-466.55,0.00016712,2]
[361762666,1747768241135,-469.72825628,0.00016712,2]
[361762667,1747768241145,-470.0,0.00016712,2]
[361762668,1747768241156,-430.0,0.00016712,2]
[361762669,1747768241166,-430.0,0.00016712,2]
[361762670,1747768241176,-470.0,0.00016712,2]
[361762671,1747768241187,-470.0,0.00016712,2]
[361762672,1747768241197,-470.0,0.00016712,2]
[361762673,1747768241208,-430.0,0.00016712,2]
[361762674,1747768241218,-220.0,0.00016712,2]
[361762675,1747768241229,-508.79754226,0.00016712,2]
[361762676,1747768241238,-470.0,0.00016712,2]
[361762677,1747768241248,-353.13,0.00016712,2]
[361762678,1747768241258,-430.0,0.00016712,2]
[361762679,1747768241267,-430.0,0.00016712,2]
[361762680,1747768241277,-470.0,0.00016712,2]
[361762681,1747768241287,-320.0,0.00016712,2]
[361762682,1747768241296,-430.0,0.00016712,2]
[361762683,1747768241306,-430.0,0.00016712,2]
[361762684,1747768241316,-430.0,0.00016712,2]
[361762685,1747768241326,-430.0,0.00016712,2]
[361762686,1747768241336,-470.06,0.00016712,2]
[361762687,1747768241346,-470.0,0.00016712,2]
[361762688,1747768241356,-430.0,0.00016712,2]
[361762689,1747768241366,-470.0,0.00016712,2]
[361762690,1747768241376,-370.0,0.00016712,2]
[361762691,1747768241386,-470.0,0.00016712,2]
[361762692,1747768241396,-430.0,0.00016712,2]
[361762693,1747768241406,-561.58,0.00016712,2]
[361762694,1747768241416,-470.0,0.00016712,2]
[361762695,1747768241427,-430.0,0.00016712,2]
[361762696,1747768241437,-430.0,0.00016712,2]
[361762697,1747768241447,-316.6543019,0.00016712,2]
[361762715,1747768243217,-192.7082935,0.00016438,2]
[361762719,1747768243376,-339.183922,0.00016438,2]
[361762720,1747768243387,-93.1077845,0.00016712,2]
[361762721,1747768243400,-20.2379136,0.00016712,2]
[361762722,1747768243410,-370.0,0.00016712,2]
[361762723,1747768243420,-470.0,0.00016712,2]
[361762724,1747768243429,-470.0,0.00016712,2]
[361762725,1747768243438,-430.0,0.00016712,2]
[361762726,1747768243448,-430.0,0.00016712,2]
[361762727,1747768243458,-430.0,0.00016712,2]
[361762728,1747768243468,-470.0,0.00016712,2]
[361762729,1747768243478,-430.0,0.00016712,2]
[361762730,1747768243488,-430.0,0.00016712,2]
[361762731,1747768243498,-206.16418886,0.00016712,2]
[361762732,1747768243510,-223.83581114,0.00016712,2]
[361762733,1747768243519,-270.0,0.00016712,2]
[361762734,1747768243529,-430.0,0.00016712,2]
[361762735,1747768243538,-430.0,0.00016712,2]
[361762736,1747768243549,-320.0,0.00016712,2]
[361762737,1747768243558,-470.0,0.00016712,2]
[361762738,1747768243567,-228.21,0.00016712,2]
[361762739,1747768243577,-470.0,0.00016712,2]
[361762740,1747768243586,-470.0,0.00016712,2]
[361762741,1747768243595,-430.0,0.00016712,2]
[361762742,1747768243605,-470.0,0.00016712,2]
[361762743,1747768243615,-430.0,0.00016712,2]
[361762744,1747768243624,-571.43053897,0.00016712,2]
[361762745,1747768243634,-470.0,0.00016712,2]
[361762746,1747768243644,-430.0,0.00016712,2]
[361762747,1747768243654,-430.0,0.00016712,2]
[361762748,1747768243663,-470.0,0.00016712,2]
[361762749,1747768243673,-430.0,0.00016712,2]
[361762750,1747768243683,-470.0,0.00016712,2]
[361762751,1747768243694,-220.0,0.00016712,2]
[361762752,1747768243704,-220.0,0.00016712,2]
[361762753,1747768243714,-470.0,0.00016712,2]
[361762754,1747768243723,-470.0,0.00016712,2]
[361762755,1747768243733,-470.0,0.00016712,2]
[361762756,1747768243744,-370.0,0.00016712,2]
[361762757,1747768243754,-430.0,0.00016712,2]
[361762758,1747768243764,-430.0,0.00016712,2]
[361762759,1747768243773,-470.0,0.00016712,2]
[361762760,1747768243787,-497.38,0.00016712,2]
[361762761,1747768243797,-370.0,0.00016712,2]
[361762762,1747768243806,-470.0,0.00016712,2]
[361762763,1747768243819,-470.0,0.00016712,2]
[361762764,1747768243829,-430.0,0.00016712,2]
[361762765,1747768243839,-470.0,0.00016712,2]
[361762766,1747768243849,-430.0,0.00016712,2]
[361762767,1747768243864,-420.0,0.00016712,2]
[361762768,1747768243874,-570.0,0.00016712,2]
[361762769,1747768243883,-470.0,0.00016712,2]
[361762770,1747768243893,-570.0,0.00016712,2]
[361762771,1747768243903,-430.0,0.00016712,2]
[361762772,1747768243912,-226.9,0.00016712,2]
[361762773,1747768243922,-470.0,0.00016712,2]
[361762774,1747768243932,-420.0,0.00016712,2]
[361762775,1747768243942,-125.23791667,0.00016712,2]
[361762776,1747768243956,-304.76208333,0.00016712,2]
[361762777,1747768243966,-483.22,0.00016712,2]
[361762778,1747768243976,-319.1,0.00016712,2]
[361762779,1747768243985,-195.22335877,0.00016712,2]
[361762780,1747768243997,-274.77664123,0.00016712,2]
[361762781,1747768244006,-430.0,0.00016712,2]
[361762782,1747768244016,-430.0,0.00016712,2]
[361762783,1747768244025,-430.0,0.00016712,2]
[361762784,1747768244035,-430.0,0.00016712,2]
[361762785,1747768244044,-344.72,0.00016712,2]
[361762786,1747768244054,-430.0,0.00016712,2]
[361762787,1747768244065,-430.0,0.00016712,2]
[361762788,1747768244075,-430.0,0.00016712,2]
[361762789,1747768244085,-430.0,0.00016712,2]
[361762790,1747768244095,-430.0,0.00016712,2]
[361762791,1747768244104,-430.0,0.00016712,2]
[361762792,1747768244114,-430.0,0.00016712,2]
[361762793,1747768244123,-470.0,0.00016712,2]
[361762794,1747768244134,-430.0,0.00016712,2]
[361762795,1747768244144,-472.55932573,0.00016712,2]
[361762796,1747768244153,-430.0,0.00016712,2]
[361762797,1747768244163,-430.0,0.00016712,2]
[361762798,1747768244172,-470.0,0.00016712,2]
[361762799,1747768244182,-727.0,0.00016712,2]
[361762800,1747768244191,-430.0,0.00016712,2]
[361762801,1747768244200,-470.0,0.00016712,2]
[361762802,1747768244210,-430.0,0.00016712,2]
[361762803,1747768244220,-470.0,0.00016712,2]
[361762804,1747768244229,-570.0,0.00016712,2]
[361762805,1747768244240,-430.0,0.00016712,2]
[361762806,1747768244249,-449.84,0.00016712,2]
[361762807,1747768244259,-430.0,0.00016712,2]
[361762808,1747768244268,-430.0,0.00016712,2]
[361762809,1747768244278,-430.0,0.00016712,2]
[361762810,1747768244287,-430.0,0.00016712,2]
[361762811,1747768244297,-430.0,0.00016712,2]
[361762812,1747768244307,-430.0,0.00016712,2]
[361762813,1747768244316,-430.0,0.00016712,2]
[361762814,1747768244326,-430.0,0.00016712,2]
[361762815,1747768244335,-430.0,0.00016712,2]
[361762816,1747768244345,-430.0,0.00016712,2]
[361762817,1747768244354,-470.0,0.00016712,2]
[361762818,1747768244364,-430.0,0.00016712,2]
[361762819,1747768244373,-509.38,0.00016712,2]
[361762820,1747768244383,-430.0,0.00016712,2]
[361762821,1747768244392,-430.0,0.00016712,2]
[361762822,1747768244402,-430.0,0.00016712,2]
[361762823,1747768244412,-430.0,0.00016712,2]
[361762824,1747768244421,-433.51,0.00016712,2]
[361762825,1747768244431,-430.0,0.00016712,2]
[361762826,1747768244440,-437.74,0.00016712,2]
[361762827,1747768244450,-430.0,0.00016712,2]
[361762828,1747768244459,-430.0,0.00016712,2]
[361762829,1747768244470,-175.37416722,0.00016712,2]
[361762830,1747768244479,-430.0,0.00016712,2]
[361762831,1747768244489,-430.0,0.00016712,2]
[361762832,1747768244498,-174.07854985,0.00016712,2]
[361762833,1747768244509,-174.15922151,0.00016712,2]
[361762834,1747768244518,-430.0,0.00016712,2]
[361762835,1747768244528,-430.0,0.00016712,2]
[361762836,1747768244538,-324.80810926,0.00016712,2]
[361762837,1747768244547,-430.0,0.00016712,2]
[361762838,1747768244557,-470.0,0.00016712,2]
[361762839,1747768244567,-538.82,0.00016712,2]
[361762840,1747768244577,-331.13086467,0.00016712,2]
[361762841,1747768244589,-149.92913533,0.00016712,2]
[361762842,1747768244599,-430.0,0.00016712,2]
[361762843,1747768244608,-430.0,0.00016712,2]
[361762844,1747768244617,-430.0,0.00016712,2]
[361762845,1747768244626,-470.0,0.00016712,2]
[361762846,1747768244636,-418.96231023,0.00016712,2]
[361762847,1747768244648,-51.03768977,0.00016712,2]
[361762848,1747768244657,-366.80232826,0.00016712,2]
[361762849,1747768244670,-63.19767174,0.00016712,2]
[361762850,1747768244679,-430.0,0.00016712,2]
[361762851,1747768244689,-26.28232822,0.00016712,2]
[361762852,1747768244701,-403.71767178,0.00016712,2]
[361762853,1747768244711,-520.21432224,0.00016712,2]
[361762854,1747768244720,-528.26599084,0.00016712,2]
[361762855,1747768244730,-430.0,0.00016712,2]
[361762856,1747768244740,-430.0,0.00016712,2]
[361762857,1747768244750,-430.0,0.00016712,2]
[361762858,1747768244760,-430.0,0.00016712,2]
[361762859,1747768244771,-470.0,0.00016712,2]
[361762860,1747768244784,-223.21,0.00016712,2]
[361762861,1747768244794,-500.0,0.00016712,2]
[361762862,1747768244803,-587.42499218,0.00016712,2]
[361762863,1747768244813,-500.0,0.00016712,2]
[361762864,1747768244824,-626.86983066,0.00016712,2]
[361762865,1747768244834,-500.26002006,0.00016714,2]
[361762866,1747768244843,-470.13692903,0.00016714,2]
[361762867,1747768244853,-500.0,0.00016714,2]
[361762868,1747768244864,-500.0,0.00016714,2]
[361762869,1747768244873,-500.0,0.00016714,2]
[361762870,1747768244882,-500.0,0.00016714,2]
[361762871,1747768244891,-411.0232715,0.00016714,2]
[361762872,1747768244900,-500.0,0.00016714,2]
[361762873,1747768244911,-500.0,0.00016719,2]
[361762874,1747768244923,-500.0,0.00016719,2]
[361762875,1747768244934,-500.0,0.00016722,2]
[361762876,1747768244945,-316.64819098,0.00016722,2]
[361762877,1747768244955,-209.90231546,0.00016724,2]
[361762878,1747768244967,-500.0,0.00016724,2]
[361762879,1747768244976,-500.0,0.00016724,2]
[361762880,1747768244986,-500.0,0.00016724,2]
[361762881,1747768244995,-500.25731659,0.00016724,2]
[361762882,1747768245004,-500.0,0.00016724,2]
[361762883,1747768245014,-500.0,0.00016724,2]
[361762884,1747768245023,-500.0,0.00016726,2]
[361762885,1747768245033,-161.24888451,0.00016726,2]
[361762886,1747768245043,-500.0,0.00016728,2]
[361762887,1747768245053,-500.0,0.00016728,2]
[361762888,1747768245062,-153.44115891,0.00016728,2]
[361762889,1747768245072,-503.43177322,0.00016728,2]
[361762890,1747768245081,-500.0,0.00016728,2]
[361762891,1747768245091,-201.47433549,0.00016728,2]
[361762892,1747768245100,-500.0,0.00016728,2]
[361762893,1747768245109,-500.0,0.00016728,2]
[361762894,1747768245119,-161.03099501,0.00016728,2]
[361762895,1747768245128,-500.0,0.00016728,2]
[361762896,1747768245138,-500.0,0.00016728,2]
[361762897,1747768245148,-422.78467075,0.00016728,2]
[361762898,1747768245158,-500.0,0.00016728,2]
[361762899,1747768245167,-500.0,0.00016729,2]
[361762900,1747768245183,-500.0,0.0001674,2]
[361762901,1747768245196,-500.0,0.0001674,2]
[361762902,1747768245206,-159.43070795,0.0001674,2]
[361762903,1747768245215,-608.50255846,0.0001674,2]
[361762904,1747768245225,-490.0,0.00016986,2]
[361762905,1747768245234,-490.0,0.00016986,2]
[361762906,1747768245243,-490.0,0.00016986,2]
[361762907,1747768245253,-430.0,0.00016986,2]
[361762908,1747768245263,-490.0,0.00016986,2]
[361762909,1747768245272,-490.0,0.00016986,2]
[361762910,1747768245282,-490.0,0.00016986,2]
[361762911,1747768245292,-490.0,0.00016986,2]
[361762912,1747768245302,-490.0,0.00016986,2]
[361762913,1747768245313,-490.0,0.00016986,2]
[361762914,1747768245322,-1004.92510082,0.00016986,2]
[361762915,1747768245331,-490.0,0.00016986,2]
[361762916,1747768245341,-490.0,0.00016986,2]
[361762917,1747768245350,-490.0,0.00016986,2]
[361762918,1747768245359,-490.0,0.00016986,2]
[361762919,1747768245369,-490.0,0.00016986,2]
[361762920,1747768245378,-490.0,0.00016986,2]
[361762921,1747768245387,-490.0,0.00016986,2]
[361762922,1747768245396,-490.0,0.00016986,2]
[361762923,1747768245406,-490.0,0.00016986,2]
[361762924,1747768245415,-540.0,0.00016986,2]
[361762925,1747768245424,-490.0,0.00016986,2]
[361762926,1747768245433,-490.0,0.00016986,2]
[361762927,1747768245443,-490.0,0.00016986,2]
[361762928,1747768245452,-490.0,0.00016986,2]
[361762929,1747768245462,-490.0,0.00016986,2]
[361762930,1747768245471,-490.0,0.00016986,2]
[361762931,1747768245480,-490.0,0.00016986,2]
[361762932,1747768245490,-490.0,0.00016986,2]
[361762933,1747768245499,-490.0,0.00016986,2]
[361762934,1747768245509,-290.0,0.00016986,2]
[361762935,1747768245517,-224.97846163,0.00016986,2]
[361762936,1747768245535,-205.02153837,0.00016986,2]
[361762937,1747768245545,-490.0,0.00016986,2]
[361762938,1747768245555,-47.93353619,0.00016986,2]
[361762984,1747768246271,-490.0,0.00016438,2]
[361762986,1747768246281,-442.06646381,0.00016986,2]
[361762988,1747768246290,-290.0,0.00016986,2]
[361762989,1747768246300,-430.0,0.00016986,2]
[361762991,1747768246309,-16.1336331,0.00016986,2]
[361762993,1747768246320,-413.8663669,0.00016986,2]
[361762995,1747768246329,-475.47524009,0.00016986,2]
[361762997,1747768246339,-267.0079604,0.00016986,2]
[361762999,1747768246350,-222.9920396,0.00016986,2]
[361763001,1747768246360,-48.52549857,0.00016986,2]
[361763003,1747768246371,-441.47450143,0.00016986,2]
[361763005,1747768246381,-490.0,0.00016986,2]
[361763006,1747768246390,-430.0,0.00016986,2]
[361763007,1747768246400,-430.0,0.00016986,2]
[361763008,1747768246409,-430.0,0.00016986,2]
[361763009,1747768246418,-430.0,0.00016986,2]
[361763010,1747768246428,-430.0,0.00016986,2]
[361763011,1747768246438,-550.9032418,0.00016986,2]
[361763012,1747768246448,-490.0,0.00016986,2]
[361763013,1747768246458,-430.0,0.00016986,2]
[361763014,1747768246467,-490.0,0.00016986,2]
[361763015,1747768246477,-407.62225677,0.00016986,2]
[361763016,1747768246490,-82.37774323,0.00016986,2]
[361763017,1747768246500,-430.0,0.00016986,2]
[361763018,1747768246510,-490.0,0.00016986,2]
[361763019,1747768246519,-490.0,0.00016986,2]
[361763020,1747768246529,-490.0,0.00016986,2]
[361763021,1747768246538,-490.0,0.00016986,2]
[361763022,1747768246547,-236.24,0.00016986,2]
[361763023,1747768246556,-430.0,0.00016986,2]
[361763024,1747768246566,-430.0,0.00016986,2]
[361763025,1747768246575,-490.0,0.00016986,2]
[361763026,1747768246584,-430.0,0.00016986,2]
[361763027,1747768246593,-490.0,0.00016986,2]
[361763028,1747768246603,-352.12,0.00016986,2]
[361763029,1747768246612,-497.26,0.00016986,2]
[361763030,1747768246621,-430.0,0.00016986,2]
[361763031,1747768246631,-490.0,0.00016986,2]
[361763032,1747768246640,-510.04,0.00016986,2]
[361763033,1747768246650,-430.0,0.00016986,2]
[361763034,1747768246659,-490.0,0.00016986,2]
[361763035,1747768246668,-357.86,0.00016986,2]
[361763036,1747768246677,-490.0,0.00016986,2]
[361763037,1747768246686,-490.0,0.00016986,2]
[361763038,1747768246695,-490.0,0.00016986,2]
[361763039,1747768246705,-490.0,0.00016986,2]
[361763040,1747768246714,-490.0,0.00016986,2]
[361763041,1747768246723,-486.17518577,0.00016986,2]
[361763042,1747768246739,-3.82481423,0.00016986,2]
[361763043,1747768246753,-490.0,0.00016986,2]
[361763044,1747768246762,-490.0,0.00016986,2]
[361763045,1747768246771,-211.63518577,0.00016986,2]
[361763046,1747768246786,-278.36481423,0.00016986,2]
[361763047,1747768246796,-490.0,0.00016986,2]
[361763048,1747768246805,-490.0,0.00016986,2]
[361763049,1747768246815,-430.0,0.00016986,2]
[361763050,1747768246825,-430.0,0.00016986,2]
[361763051,1747768246834,-426.56,0.00016986,2]
[361763052,1747768246844,-151.0,0.00016986,2]
[361763053,1747768246855,-490.0,0.00016986,2]
[361763054,1747768246865,-430.0,0.00016986,2]
[361763055,1747768246874,-430.0,0.00016986,2]
[361763056,1747768246883,-151.0,0.00016986,2]
[361763057,1747768246893,-430.0,0.00016986,2]
[361763058,1747768246903,-430.0,0.00016986,2]
[361763059,1747768246912,-220.738964,0.00016986,2]
[361763060,1747768246921,-325.37,0.00016986,2]
[361763061,1747768246934,-430.0,0.00016986,2]
[361763062,1747768246945,-225.064673,0.00016986,2]
[361763063,1747768247065,-430.0,0.00016986,2]
[361763064,1747768247090,-430.0,0.00016986,2]
[361763065,1747768247099,-490.0,0.00016986,2]
[361763066,1747768247108,-225.064673,0.00016986,2]
[361763067,1747768247117,-430.0,0.00016986,2]
[361763068,1747768247126,-430.0,0.00016986,2]
[361763069,1747768247136,-430.0,0.00016986,2]
[361763070,1747768247146,-430.0,0.00016986,2]
[361763071,1747768247156,-490.0,0.00016986,2]
[361763072,1747768247165,-430.0,0.00016986,2]
[361763073,1747768247174,-490.0,0.00016986,2]
[361763074,1747768247184,-490.0,0.00016986,2]
[361763075,1747768247193,-430.0,0.00016986,2]
[361763076,1747768247202,-490.0,0.00016986,2]
[361763077,1747768247213,-490.0,0.00016986,2]
[361763078,1747768247222,-430.0,0.00016986,2]
[361763079,1747768247231,-430.0,0.00016986,2]
[361763080,1747768247241,-430.0,0.00016986,2]
[361763081,1747768247250,-157.00031362,0.00016986,2]
[361763082,1747768247260,-246.25652218,0.00016986,2]
[361763083,1747768247269,-367.48,0.00016986,2]
[361763084,1747768247279,-369.54,0.00016986,2]
[361763085,1747768247288,-490.0,0.00016986,2]